fUST/lending_fUST_20240901
["ID","MTS","AMOUNT","RATE_DAILY","PERIOD"]
[336771785,1725131440464,-1076.31,0.0003315,31]
[336771786,1725131440473,-239.24339,0.0003315,14]
[336771788,1725131440483,-239.24339,0.0003315,14]
[336771789,1725131440493,-200.0,0.0003315,7]
[336771790,1725131440502,-239.24339,0.0003315,14]
[336771791,1725131440514,-965.98,0.0003315,31]
[336771792,1725131440524,-239.24339,0.0003315,14]
[336771793,1725131440533,-500.0,0.0003315,31]
[336771794,1725131440544,-760.6,0.0003315,7]
[336771795,1725131440554,-239.24339,0.0003315,14]
[336771796,1725131440563,-239.24339,0.0003315,14]
[336771797,1725131440573,-500.0,0.0003315,31]
[336771798,1725131440582,-239.24339,0.0003315,14]
[336771799,1725131440592,-239.24339996,0.0003315,14]
[336771800,1725131440601,-500.0,0.0003315,31]
[336771801,1725131440611,-500.0,0.0003315,31]
[336771802,1725131440620,-500.0,0.0003315,31]
[336771803,1725131440631,-937.75,0.0003315,31]
[336771804,1725131440641,-500.0,0.0003315,31]
[336771805,1725131440651,-500.0,0.0003315,30]
[336771806,1725131440660,-866.43,0.0003315,31]
[336771807,1725131440669,-500.0,0.0003315,31]
[336771808,1725131440682,-1179.68,0.0003315,31]
[336771809,1725131440692,-541.82405022,0.0003315,31]
[336771810,1725131440703,-500.0,0.0003315,31]
[336771811,1725131440714,-500.0,0.0003315,31]
[336771812,1725131440723,-500.0,0.0003315,31]
[336771813,1725131440734,-927.57,0.0003315,31]
[336771814,1725131440743,-187.74711352,0.0003315,31]
[336771815,1725131440753,-527.16,0.0003315,31]
[336771816,1725131440765,-500.0,0.0003315,31]
[336771817,1725131440775,-851.27,0.0003315,31]
[336771818,1725131440785,-211.557206,0.0003315,14]
[336771819,1725131440794,-500.0,0.0003315,31]
[336771820,1725131440804,-500.0,0.0003315,31]
[336771821,1725131440815,-500.0,0.0003315,31]
[336771822,1725131440824,-500.0,0.0003315,31]
[336771823,1725131440833,-151.0,0.0003315,14]
[336771824,1725131440843,-151.0,0.0003315,14]
[336771825,1725131440852,-151.0,0.0003315,14]
[336771826,1725131440862,-500.0,0.0003315,31]
[336771827,1725131440872,-500.0,0.0003315,31]
[336771828,1725131440882,-500.0,0.0003315,31]
[336771829,1725131440891,-500.0,0.0003315,31]
[336771830,1725131440901,-701.18,0.0003315,31]
[336771831,1725131440911,-674.04,0.0003315,31]
[336771832,1725131440921,-500.0,0.0003315,31]
[336771833,1725131440933,-500.0,0.0003315,31]
[336771834,1725131440942,-1010.2,0.0003315,31]
[336771835,1725131440953,-500.0,0.0003315,31]
[336771836,1725131440962,-500.0,0.0003315,31]
[336771837,1725131440972,-9771.98,0.0003315,31]
[336771838,1725131440982,-12824.78,0.0003315,31]
[336771839,1725131440996,-992.02,0.0003315,31]
[336771840,1725131441007,-500.0,0.0003315,31]
[336771841,1725131441018,-168.19705482,0.0003315,31]
[336771842,1725131441027,-500.0,0.0003315,31]
[336771843,1725131441038,-500.0,0.0003315,31]
[336771844,1725131441047,-828.53,0.0003315,31]
[336771845,1725131441056,-500.0,0.0003315,31]
[336771846,1725131441067,-506.69042414,0.0003315,31]
[336771847,1725131441076,-1900.4,0.0003315,31]
[336771848,1725131441086,-500.0,0.0003315,31]
[336771849,1725131441095,-500.0,0.0003315,31]
[336771850,1725131441104,-964.01,0.0003315,31]
[336771851,1725131441114,-500.0,0.0003315,31]
[336771852,1725131441123,-926.28,0.0003315,31]
[336771853,1725131441133,-994.23,0.0003315,31]
[336771854,1725131441143,-247.74535128,0.0003315,31]
[336771855,1725131441153,-500.0,0.0003315,31]
[336771856,1725131441162,-500.0,0.0003315,31]
[336771857,1725131441171,-433.76,0.0003315,31]
[336771858,1725131441181,-500.0,0.0003315,31]
[336771859,1725131441191,-1000.81,0.0003315,31]
[336771860,1725131441200,-500.0,0.0003315,31]
[336771861,1725131441209,-500.0,0.0003315,31]
[336771862,1725131441219,-462.99152859,0.0003315,31]
[336771863,1725131441334,-500.0,0.0003315,31]
[336771864,1725131441344,-500.0,0.0003315,31]
[336771865,1725131441354,-500.0,0.0003315,31]
[336771866,1725131441364,-973.99,0.0003315,31]
[336771867,1725131441373,-2108.82,0.0003315,31]
[336771868,1725131441382,-500.0,0.0003315,31]
[336771869,1725131441392,-773.73,0.0003315,31]
[336771870,1725131441401,-5118.87,0.0003315,31]
[336771871,1725131441410,-1720.99,0.0003315,31]
[336771872,1725131441421,-809.36,0.0003315,31]
[336771873,1725131441431,-500.0,0.0003315,31]
[336771874,1725131441441,-649.45,0.0003315,31]
[336771875,1725131441450,-500.0,0.0003315,31]
[336771876,1725131441461,-1054.14,0.0003315,31]
[336771877,1725131441470,-3970.02,0.0003315,31]
[336771878,1725131441480,-500.0,0.0003315,31]
[336771879,1725131441489,-500.0,0.0003315,31]
[336771880,1725131441499,-500.0,0.0003315,31]
[336771881,1725131441508,-2656.98,0.0003315,31]
[336771882,1725131441518,-500.0,0.0003315,31]
[336771883,1725131441528,-500.0,0.0003315,31]
[336771884,1725131441537,-1497.95,0.0003315,31]
[336771885,1725131441547,-893.4,0.0003315,31]
[336771886,1725131441556,-500.0,0.0003315,31]
[336771887,1725131441566,-1645.26,0.0003315,31]
[336771888,1725131441575,-500.0,0.0003315,31]
[336771889,1725131441585,-500.0,0.0003315,31]
[336771890,1725131441595,-481.49,0.0003315,31]
[336771891,1725131441605,-500.0,0.0003315,31]
[336771892,1725131441615,-587.05,0.0003315,31]
[336771893,1725131441624,-500.0,0.0003315,31]
[336771894,1725131441634,-500.0,0.0003315,31]
[336771895,1725131441645,-4955.55,0.0003315,31]
[336771896,1725131441655,-1013.78,0.0003315,31]
[336771897,1725131441665,-502.94192009,0.0003315,31]
[336771898,1725131441675,-1470.75,0.0003315,31]
[336771899,1725131441684,-500.0,0.0003315,31]
[336771900,1725131441694,-981.63,0.0003315,31]
[336771901,1725131441704,-500.0,0.0003315,31]
[336771902,1725131441713,-685.32,0.0003315,31]
[336771903,1725131441723,-500.0,0.0003315,31]
[336771904,1725131441732,-500.0,0.0003315,31]
[336771905,1725131441742,-500.0,0.0003315,31]
[336771906,1725131441751,-500.0,0.0003315,31]
[336771907,1725131441761,-500.0,0.0003315,31]
[336771908,1725131441770,-500.0,0.0003315,31]
[336771909,1725131441780,-522.88,0.0003315,31]
[336771910,1725131441789,-500.0,0.0003315,31]
[336771911,1725131441799,-500.0,0.0003315,31]
[336771912,1725131441808,-610.97,0.0003315,31]
[336771913,1725131441819,-671.2,0.0003315,31]
[336771914,1725131441830,-503.5,0.0003315,31]
[336771915,1725131441839,-500.0,0.0003315,31]
[336771916,1725131441850,-29824.75,0.0003315,8]
[336771917,1725131441859,-500.0,0.0003315,31]
[336771918,1725131441868,-1960.16,0.0003315,31]
[336771919,1725131441878,-584.61,0.0003315,31]
[336771920,1725131441889,-1159.22,0.0003315,31]
[336771921,1725131441899,-500.0,0.0003315,31]
[336771922,1725131441908,-500.0,0.0003315,31]
[336771923,1725131441918,-1319.57,0.0003315,31]
[336771924,1725131441928,-500.0,0.0003315,31]
[336771925,1725131441939,-576.9,0.0003315,31]
[336771926,1725131441949,-1761.55,0.0003315,21]
[336771927,1725131441958,-3825.17,0.0003315,31]
[336771928,1725131441967,-506.84438037,0.0003315,31]
[336771929,1725131441978,-735.75,0.0003315,31]
[336771930,1725131441987,-900.92,0.0003315,31]
[336771931,1725131442001,-4196.54416264,0.0003315,31]
[336771932,1725131442256,-1445.03583736,0.0003315,31]
[336771933,1725131442265,-1664.14,0.0003315,31]
[336771934,1725131442276,-500.0,0.0003315,31]
[336771935,1725131442287,-1394.75,0.0003315,31]
[336771936,1725131442298,-96.38933894,0.0003315,31]
[336771937,1725131442312,-403.61066106,0.0003315,31]
[336771938,1725131442322,-919.96,0.0003315,31]
[336771939,1725131442332,-4866.12,0.0003315,31]
[336771940,1725131442343,-500.0,0.0003315,31]
[336771941,1725131442352,-2107.85,0.0003315,31]
[336771942,1725131442362,-500.0,0.0003315,31]
[336771943,1725131442371,-500.0,0.0003315,31]
[336771944,1725131442380,-551.06,0.0003315,31]
[336771945,1725131442390,-1208.36,0.0003315,7]
[336771946,1725131442399,-539.96,0.0003315,31]
[336771947,1725131442409,-777.29,0.0003315,31]
[336771948,1725131442419,-500.0,0.0003315,31]
[336771949,1725131442434,-500.0,0.0003315,31]
[336771950,1725131442444,-500.0,0.0003315,31]
[336771951,1725131442454,-576.85,0.0003315,31]
[336771952,1725131442464,-1007.0,0.0003315,31]
[336771953,1725131442473,-5039.53,0.0003315,31]
[336771954,1725131442483,-500.0,0.0003315,31]
[336771955,1725131442492,-500.0,0.0003315,31]
[336771956,1725131442502,-544.12,0.0003315,31]
[336771957,1725131442514,-500.0,0.0003315,31]
[336771958,1725131442523,-500.0,0.0003315,31]
[336771959,1725131442533,-500.0,0.0003315,31]
[336771960,1725131442542,-791.21,0.0003315,31]
[336771961,1725131442551,-500.0,0.0003315,31]
[336771962,1725131442561,-1622.36,0.0003315,31]
[336771963,1725131442570,-2525.21,0.0003315,31]
[336771964,1725131442580,-3159.9,0.0003315,31]
[336771965,1725131442590,-286.89991975,0.0003315,31]
[336771966,1725131442602,-213.10008025,0.0003315,31]
[336771967,1725131442612,-595.04,0.0003315,31]
[336771968,1725131442621,-918.61,0.0003315,31]
[336771969,1725131442631,-489.86563039,0.0003315,31]
[336771973,1725131443302,-500.0,0.00032876,31]
[336771974,1725131443311,-10.13436961,0.0003315,31]
[336771975,1725131443321,-500.0,0.0003315,2]
[336771976,1725131443330,-280.36563039,0.0003315,31]
[336771977,1725131443342,-607.59436961,0.0003315,31]
[336771978,1725131443351,-500.0,0.0003315,31]
[336771979,1725131443360,-1086.74,0.000332,30]
[336771982,1725131443369,-1357.3,0.000332,14]
[336771984,1725131443378,-500.25508391,0.00033216,2]
[336771986,1725131443388,-151.0,0.00033226,7]
[336771987,1725131443398,-332.12108599,0.00033244,2]
[336771988,1725131443408,-153.0,0.00033288,2]
[336771989,1725131443417,-332.12108599,0.0003334,2]
[336771990,1725131443427,-151.0,0.00033342,120]
[336771991,1725131443437,-150.112233,0.000334,8]
[336771992,1725131443446,-15970.1944449,0.00033414,4]
[336771993,1725131443456,-2661.69907415,0.0003342,4]
[336771994,1725131443465,-500.0,0.00033424,31]
[336771995,1725131443474,-151.692955,0.00033424,14]
[336771996,1725131443483,-151.692955,0.00033424,14]
[336771997,1725131443493,-151.692955,0.00033424,14]
[336771998,1725131443503,-151.692955,0.00033424,14]
[336771999,1725131443512,-151.692955,0.00033424,14]
[336772000,1725131443521,-151.692955,0.00033424,14]
[336772001,1725131443531,-1815.45,0.00033424,31]
[336772002,1725131443540,-500.0,0.00033424,31]
[336772003,1725131443549,-500.0,0.00033424,31]
[336772004,1725131443559,-500.0,0.00033424,31]
[336772005,1725131443568,-500.0,0.00033424,31]
[336772006,1725131443578,-500.0,0.00033424,31]
[336772007,1725131443587,-500.0,0.00033424,31]
[336772008,1725131443597,-500.0,0.00033424,31]
[336772009,1725131443607,-500.0,0.00033424,31]
[336772010,1725131443616,-500.0,0.00033424,31]
[336772011,1725131443626,-502.49912155,0.00033424,31]
[336772012,1725131443635,-500.0,0.00033424,31]
[336772013,1725131443644,-675.89,0.00033424,31]
[336772014,1725131443653,-1496.03,0.00033424,31]
[336772015,1725131443663,-500.0,0.00033424,31]
[336772016,1725131443673,-500.0,0.00033424,31]
[336772017,1725131443683,-547.49,0.00033424,31]
[336772018,1725131443692,-500.0,0.00033424,31]
[336772019,1725131443702,-500.0,0.00033424,31]
[336772020,1725131443711,-500.0,0.00033424,31]
[336772021,1725131443720,-431.82629042,0.00033424,31]
[336772022,1725131443729,-500.0,0.00033424,31]
[336772023,1725131443739,-500.0,0.00033424,31]
[336772024,1725131443748,-500.0,0.00033424,31]
[336772025,1725131443758,-500.0,0.00033424,31]
[336772026,1725131443767,-445.68892038,0.00033424,31]
[336772027,1725131443780,-54.31107962,0.00033424,31]
[336772028,1725131443789,-500.0,0.00033424,31]
[336772029,1725131443798,-500.0,0.00033424,31]
[336772030,1725131443807,-500.0,0.00033424,31]
[336772031,1725131443817,-500.0,0.00033424,31]
[336772032,1725131443826,-649.59,0.00033424,31]
[336772033,1725131443835,-1037.78,0.00033424,31]
[336772034,1725131443844,-500.0,0.00033424,31]
[336772035,1725131443853,-530.21,0.00033424,31]
[336772036,1725131443862,-500.0,0.00033424,31]
[336772037,1725131443871,-1555.78,0.00033424,31]
[336772038,1725131443882,-500.0,0.00033424,31]
[336772039,1725131443892,-664.08,0.00033424,31]
[336772040,1725131443901,-500.0,0.00033424,31]
[336772041,1725131443910,-500.0,0.00033424,31]
[336772042,1725131443920,-500.0,0.00033424,31]
[336772043,1725131443931,-1044.7,0.00033424,31]
[336772044,1725131443940,-500.0,0.00033424,31]
[336772045,1725131443949,-500.0,0.00033424,31]
[336772046,1725131443958,-500.0,0.00033424,31]
[336772047,1725131443967,-879.0,0.00033424,31]
[336772048,1725131443976,-500.0,0.00033424,31]
[336772049,1725131443986,-651.46,0.00033424,31]
[336772050,1725131443999,-500.0,0.00033424,31]
[336772051,1725131444008,-500.0,0.00033424,31]
[336772052,1725131444124,-500.0,0.00033424,31]
[336772053,1725131444134,-500.0,0.00033424,31]
[336772054,1725131444143,-500.0,0.00033424,31]
[336772055,1725131444152,-500.0,0.00033424,31]
[336772056,1725131444162,-500.0,0.00033424,31]
[336772057,1725131444170,-580.23,0.00033424,31]
[336772058,1725131444180,-500.0,0.00033424,31]
[336772059,1725131444189,-500.0,0.00033424,31]
[336772060,1725131444198,-500.0,0.00033424,31]
[336772061,1725131444207,-500.0,0.00033424,31]
[336772062,1725131444216,-813.59,0.00033424,30]
[336772063,1725131444225,-500.0,0.00033424,31]
[336772064,1725131444234,-891.07,0.00033424,31]
[336772065,1725131444243,-664.24,0.00033424,31]
[336772066,1725131444253,-500.0,0.00033424,31]
[336772067,1725131444262,-1374.38,0.00033424,31]
[336772068,1725131444271,-500.0,0.00033424,31]
[336772069,1725131444281,-500.0,0.00033424,31]
[336772070,1725131444290,-640.65,0.00033424,31]
[336772071,1725131444299,-500.0,0.00033424,31]
[336772072,1725131444308,-595.08447234,0.00033424,31]
[336772073,1725131444318,-500.0,0.00033424,31]
[336772074,1725131444327,-943.22,0.00033424,31]
[336772075,1725131444336,-500.0,0.00033424,31]
[336772076,1725131444346,-500.0,0.00033424,31]
[336772077,1725131444355,-507.15164747,0.00033424,31]
[336772078,1725131444364,-691.75,0.00033424,31]
[336772079,1725131444373,-500.0,0.00033424,7]
[336772080,1725131444383,-500.0,0.00033424,31]
[336772081,1725131444392,-1000.0,0.00033424,7]
[336772082,1725131444401,-500.0,0.00033424,31]
[336772083,1725131444411,-847.0,0.00033424,31]
[336772084,1725131444420,-500.0,0.00033424,31]
[336772085,1725131444429,-500.0,0.00033424,31]
[336772086,1725131444438,-500.0,0.00033424,31]
[336772087,1725131444449,-510.30920491,0.00033424,31]
[336772088,1725131444458,-500.0,0.00033424,31]
[336772089,1725131444467,-527.78,0.00033424,31]
[336772090,1725131444477,-500.0,0.00033424,31]
[336772091,1725131444487,-500.0,0.00033424,31]
[336772092,1725131444496,-831.07,0.00033424,31]
[336772093,1725131444506,-500.0,0.00033424,31]
[336772094,1725131444516,-976.97,0.00033424,31]
[336772095,1725131444525,-927.6,0.00033424,31]
[336772096,1725131444535,-500.0,0.00033424,31]
[336772097,1725131444544,-500.0,0.00033424,31]
[336772098,1725131444554,-500.0,0.00033424,31]
[336772099,1725131444565,-500.0,0.00033424,31]
[336772100,1725131444575,-723.82,0.00033424,31]
[336772101,1725131444584,-500.0,0.00033424,31]
[336772102,1725131444594,-500.0,0.00033424,31]
[336772103,1725131444604,-502.18738383,0.00033424,31]
[336772104,1725131444614,-221.73664372,0.00033424,31]
[336772105,1725131444624,-500.0,0.00033424,31]
[336772106,1725131444634,-500.0,0.00033424,31]
[336772107,1725131444644,-500.0,0.00033424,31]
[336772108,1725131444654,-620.08,0.00033424,31]
[336772109,1725131444664,-500.0,0.00033424,31]
[336772110,1725131444674,-500.0,0.00033424,31]
[336772111,1725131444685,-500.0,0.00033424,31]
[336772112,1725131444695,-500.0,0.00033424,31]
[336772113,1725131444704,-500.0,0.00033424,31]
[336772114,1725131444714,-500.0,0.00033424,31]
[336772115,1725131444724,-500.0,0.00033424,31]
[336772116,1725131444734,-814.59,0.00033424,31]
[336772117,1725131444743,-966.52,0.00033424,31]
[336772118,1725131444753,-500.0,0.00033424,31]
[336772119,1725131444762,-500.0,0.00033424,31]
[336772120,1725131444772,-500.0,0.00033424,31]
[336772121,1725131444782,-500.0,0.00033424,31]
[336772122,1725131444791,-500.0,0.00033424,31]
[336772123,1725131444800,-500.0,0.00033424,31]
[336772124,1725131444810,-505.46800575,0.00033424,31]
[336772125,1725131444819,-734.21,0.00033424,31]
[336772126,1725131444828,-500.0,0.00033424,31]
[336772127,1725131444838,-502.2,0.00033424,31]
[336772128,1725131444847,-500.0,0.00033424,31]
[336772129,1725131444857,-500.0,0.00033424,31]
[336772130,1725131444867,-508.48636531,0.00033424,31]
[336772131,1725131444877,-500.0,0.00033424,31]
[336772132,1725131444888,-500.0,0.00033424,31]
[336772133,1725131444898,-500.0,0.00033424,31]
[336772134,1725131444909,-510.71,0.00033424,31]
[336772135,1725131444919,-500.0,0.00033424,31]
[336772136,1725131444929,-927.24,0.00033424,31]
[336772137,1725131444939,-500.0,0.00033424,31]
[336772138,1725131444948,-500.0,0.00033424,31]
[336772139,1725131444958,-526.72,0.00033424,31]
[336772140,1725131444967,-500.0,0.00033424,31]
[336772141,1725131444976,-500.0,0.00033424,31]
[336772142,1725131444986,-859.61,0.00033424,31]
[336772143,1725131445000,-500.0,0.00033424,31]
[336772144,1725131445010,-811.68,0.00033424,14]
[336772145,1725131445020,-500.0,0.00033424,31]
[336772146,1725131445029,-500.0,0.00033424,31]
[336772147,1725131445040,-500.0,0.00033424,31]
[336772148,1725131445050,-500.0,0.00033424,31]
[336772149,1725131445059,-1076.31,0.00033424,31]
[336772150,1725131445070,-200.0,0.00033424,7]
[336772151,1725131445079,-965.98,0.00033424,31]
[336772152,1725131445089,-500.0,0.00033424,31]
[336772153,1725131445101,-760.6,0.00033424,7]
[336772154,1725131445111,-500.0,0.00033424,31]
[336772155,1725131445121,-500.0,0.00033424,31]
[336772156,1725131445131,-500.0,0.00033424,31]
[336772157,1725131445141,-500.0,0.00033424,31]
[336772158,1725131445151,-937.75,0.00033424,31]
[336772159,1725131445161,-500.0,0.00033424,31]
[336772160,1725131445171,-500.0,0.00033424,30]
[336772161,1725131445181,-866.43,0.00033424,31]
[336772162,1725131445190,-407.26449209,0.00033424,31]
[336772163,1725131445199,-1179.68,0.00033424,31]
[336772164,1725131445209,-500.0,0.00033424,31]
[336772165,1725131445219,-500.0,0.00033424,31]
[336772166,1725131445228,-500.0,0.00033424,31]
[336772167,1725131445239,-927.57,0.00033424,31]
[336772168,1725131445249,-527.16,0.00033424,31]
[336772169,1725131445259,-500.0,0.00033424,31]
[336772170,1725131445269,-762.86336792,0.00033424,31]
[336772171,1725131445285,-88.40663208,0.00033424,31]
[336772172,1725131445295,-500.0,0.00033424,31]
[336772173,1725131445304,-122.4786445,0.00033424,31]
[336772180,1725131844865,162.42318,0.00014247,2]
[336772183,1725132385767,169.719126,0.00014247,2]
[336772317,1725132448111,-1056.8281474,0.0002927,2]
[336772318,1725132448135,-250.0,0.00029432,2]
[336772319,1725132448161,-162.42318,0.00029589,2]
[336772320,1725132448183,-917.1372903,0.00029884,2]
[336772321,1725132448205,-346.30629925,0.00030385,2]
[336772322,1725132453173,-53.69370075,0.00030385,2]
[336772323,1725132453197,-6625.67300131,0.00030386,2]
[336772327,1725132483137,14456.35104211,0.00018447,2]
[336772328,1725132496734,396.71886238,0.000123,2]
[336772335,1725132520302,6238.04087013,0.00014,2]
[336772336,1725132520327,6666.22706536,0.00014,2]
[336772338,1725132520657,410.42681097,0.0001,2]
[336772360,1725132552532,500.0,0.000221,2]
[336772361,1725132553402,500.0,0.000221,2]
[336772362,1725132554151,500.0,0.000221,2]
[336772363,1725132554659,500.0,0.000221,2]
[336772364,1725132555032,174.80000473,0.000221,2]
[336772387,1725132632349,-473.83415027,0.0003,10]
[336772397,1725132638496,-903.8342637,0.0003,10]
[336772399,1725132638739,-141.82364118,0.0003,10]
[336772400,1725132638749,-160.9792,0.00030103,2]
[336772401,1725132638758,-160.9792,0.00030185,2]
[336772402,1725132638768,-160.9792,0.00030268,2]
[336772403,1725132638778,-160.9792,0.0003035,2]
[336772404,1725132638788,-400.0,0.00030385,2]
[336772405,1725132638797,-400.0,0.00030385,2]
[336772406,1725132638806,-6779.62517343,0.00030386,2]
[336772410,1725132638863,-11484.70182526,0.00030386,2]
[336772411,1725132638872,-160.9792,0.00030433,2]
[336772412,1725132638882,-160.9792,0.00030516,2]
[336772413,1725132638891,-160.9792,0.00030598,2]
[336772414,1725132638900,-1509.4252531,0.00030653,2]
[336772415,1725132638911,-160.9792,0.00030681,2]
[336772416,1725132638919,-168.531821,0.00030758,2]
[336772417,1725132638928,-160.9792,0.00030763,2]
[336772418,1725132638938,-160.9792,0.00030846,2]
[336772419,1725132638946,-160.9792,0.00030928,2]
[336772420,1725132638956,-160.9792,0.00031011,2]
[336772421,1725132638965,-160.9792,0.00031093,2]
[336772422,1725132638974,-160.9792,0.00031176,2]
[336772423,1725132638983,-160.9792,0.00031259,2]
[336772424,1725132638992,-160.9792,0.00031341,2]
[336772425,1725132639002,-160.9792,0.00031424,2]
[336772426,1725132639011,-160.9792,0.00031506,2]
[336772427,1725132639020,-500.0,0.00031547,7]
[336772428,1725132639029,-500.0,0.00031556,7]
[336772429,1725132639039,-160.9792,0.00031589,2]
[336772430,1725132639049,-500.0,0.00031619,7]
[336772431,1725132639058,-160.9792,0.00031671,2]
[336772432,1725132639067,-206.303166,0.00031781,2]
[336772433,1725132639077,-1417.22958179,0.000319,2]
[336772434,1725132639086,-1158.09,0.0003199,3]
[336772435,1725132639095,-965.08,0.0003199,3]
[336772436,1725132639105,-986.19228124,0.00032,15]
[336772437,1725132639114,-31750.2154899,0.00032,7]
[336772438,1725132639123,-4794.52649398,0.00032,2]
[336772439,1725132639138,-47522.56416283,0.00032,2]
[336772440,1725132639147,-500.0,0.0003204,7]
[336772441,1725132639156,-151.03955338,0.00032078,2]
[336772442,1725132639165,-500.0,0.00032162,7]
[336772443,1725132639174,-1417.22958178,0.00032189,2]
[336772444,1725132639184,-500.0,0.0003222,7]
[336772445,1725132639193,-153.0,0.00032329,2]
[336772446,1725132639202,-153.0,0.00032329,2]
[336772447,1725132639211,-153.0,0.00032329,2]
[336772448,1725132639220,-500.0,0.0003239,7]
[336772449,1725132639229,-1417.22958178,0.00032477,2]
[336772450,1725132639239,-247.6931525,0.00032603,2]
[336772451,1725132639248,-207.5893593,0.00032603,2]
[336772452,1725132639257,-200.0,0.00032735,2]
[336772453,1725132639267,-1417.22958178,0.00032766,2]
[336772454,1725132639276,-11182.04030643,0.00032776,5]
[336772455,1725132639285,-9053.53481707,0.00032866,4]
[336772490,1725132640577,-1402.3000192,0.00032866,4]
[336772504,1725132643456,-7468.575,0.00032866,4]
[336772505,1725132643474,-8529.86043913,0.00032866,4]
[336772506,1725132643484,-500.0,0.00032875,2]
[336772507,1725132643494,-500.0,0.00032875,2]
[336772508,1725132643503,-162.17819007,0.00032875,2]
[336772509,1725132643513,-500.0,0.00032875,31]
[336772510,1725132643522,-500.0,0.00032876,31]
[336772511,1725132643531,-508.52321666,0.00032876,31]
[336772513,1725132643542,-500.0,0.00032876,31]
[336772514,1725132643554,-187.49504285,0.00032876,31]
[336772516,1725132643564,-500.0,0.00032876,31]
[336772517,1725132643573,-528.54,0.00032876,31]
[336772518,1725132643582,-500.0,0.00032876,31]
[336772519,1725132643593,-590.86,0.00032876,31]
[336772520,1725132643602,-500.0,0.00032876,31]
[336772521,1725132643611,-500.0,0.00032876,31]
[336772522,1725132643621,-500.0,0.00032876,31]
[336772523,1725132643630,-500.0,0.00032876,31]
[336772524,1725132643639,-500.0,0.00032876,31]
[336772525,1725132643648,-500.0,0.00032876,31]
[336772526,1725132643657,-500.0,0.00032876,31]
[336772527,1725132643666,-500.0,0.00032876,31]
[336772528,1725132643675,-500.0,0.00032876,31]
[336772529,1725132643684,-500.0,0.00032876,31]
[336772530,1725132643693,-501.30120937,0.00032876,31]
[336772531,1725132643702,-602.05,0.00032876,31]
[336772532,1725132643711,-500.0,0.00032876,31]
[336772533,1725132643721,-514.95375634,0.00032876,31]
[336772534,1725132643730,-500.0,0.00032876,31]
[336772535,1725132643739,-500.0,0.00032876,31]
[336772536,1725132643749,-500.0,0.00032876,31]
[336772537,1725132643759,-500.0,0.00032876,31]
[336772538,1725132643768,-500.0,0.00032876,31]
[336772539,1725132643777,-500.0,0.00032876,31]
[336772540,1725132643787,-500.0,0.00032876,7]
[336772541,1725132643796,-500.0,0.00032876,31]
[336772542,1725132643806,-500.0,0.00032876,31]
[336772543,1725132643815,-761.96,0.00032876,31]
[336772544,1725132643825,-500.0,0.00032876,31]
[336772545,1725132643837,-447.92135163,0.00032876,31]
[336772546,1725132643847,-1000.0,0.00032876,7]
[336772547,1725132643857,-500.0,0.00032876,31]
[336772548,1725132643868,-500.0,0.00032876,31]